[Event "WALTON 1st Div Women League 2023"]
[Site "Dhaka"]
[Date "2023.03.28"]
[Round "7.16"]
[White "Warsia, Khusbu"]
[Black "Varshini V Kundar"]
[Result "*"]
[ECO "C57"]
[WhiteElo "1836"]
[BlackElo "1096"]
[Annotator "NA RC COMBH"]
[PlyCount "43"]
[EventDate "2023.03.22"]
[EventType "team-tourn"]
[EventCountry "BAN"]
[SourceTitle "playchess.com"]
[Source "ChessBase"]
[SourceQuality "1"]
[TimeControl "5400+30"]

{[%evp 14,42,166,171,156,147,154,144,155,152,152,147,144,106,32767,32767,32767,32767,32767,32767,236,32767,200,129,123,32767,32767,32767,148,32767,138]} 1. e4 {[%emt 0:02:01]} e5 {[%emt 0:00:07]} 2. Nf3 {[%emt 0:00:18]} Nc6 {[%emt 0:00:07]} 3. Bc4 {[%emt 0:00:05]} Nf6 {[%emt 0:00:09]} 4. Ng5 {[%emt 0:00:22]} d5 {[%emt 0:01:03]} 5. exd5 {[%emt 0:00:09]} Nxd5 {[%emt 0:00:18]} 6. Nxf7 {[%emt 0:00:19]} Kxf7 {[%emt 0:00:29]} 7. Qf3+ {[%emt 0:00:05]} Qf6 $18 {[%emt 0:01:25]} (7... Ke6 $1 $14 8. Nc3 Ncb4) 8. Bxd5+ {[%emt 0:00:17]} Ke8 {[%emt 0:00:37]} 9. d3 {[%emt 0:01:11]} Qxf3 {[%emt 0:00:23]} 10. Bxf3 {[%emt 0:00:10]} Nd4 {[%emt 0:01:03]} 11. Bd1 {[%emt 0:00:55]} Be6 {[%emt 0:00:36]} 12. c3 {[%emt 0:01:00]} Nc6 {[%emt 1:30:13]} 13. O-O {[%emt 1:30:08]} (13. Bc2 $142) 13... Bc5 {[%emt 0:00:34]} 14. Re1 {[%emt 1:30:23]} Rf8 {[%emt 0:00:21]} 15. Be3 {[%emt 0:00:41]} Bxe3 {[%emt 0:00:18]} 16. Rxe3 {[%emt 0:00:08]} Kd7 {[%emt 0:04:22]} 17. Rg3 {[%emt 0:00:29]} g6 {[%emt 0:00:47]} 18. Bg4 {[%emt 0:00:33]} Bxg4 {[%emt 0:00:10]} 19. Rxg4 {[%emt 0:00:07]} Rae8 {[%emt 0:00:39]} 20. Nd2 {[%emt 0:00:22]} Rf4 {[%emt 0:00:37]} 21. Rxf4 {[%emt 0:00:21]} exf4 {[%emt 0:00:12]} 22. Ne4 {[%emt 0:00:03]} *